fUSD/lending_fUSD_20250221
["ID","MTS","AMOUNT","RATE_DAILY","PERIOD"]
[353881885,1740109848138,-1678.0,0.000135,2]
[353881887,1740109848148,-1000.0,0.00013504,2]
[353881889,1740109848159,-150.0,0.00013535,2]
[353881891,1740109848169,-150.0,0.00013541,2]
[353881892,1740109848178,-150.0,0.00013541,2]
[353881894,1740109848188,-150.0,0.00013571,2]
[353881896,1740109848198,-500.0,0.00013589,2]
[353881897,1740109848208,-2000.0,0.00013589,2]
[353881899,1740109848218,-500.0,0.00013589,2]
[353881901,1740109848227,-200.0,0.00013589,2]
[353881903,1740109848237,-14191.30321234,0.00013597,2]
[353881904,1740109848247,-236.64219209,0.00013597,2]
[353881906,1740109848256,-6533.87534271,0.00013597,2]
[353881908,1740109848266,-690.75113616,0.00013597,2]
[353881910,1740109848276,-155.37294927,0.00013597,2]
[353881911,1740109848286,-194.15763682,0.00013598,2]
[353881913,1740109848295,-300.0,0.00013599,2]
[353881915,1740109848305,-150.0,0.000136,2]
[353881917,1740109848314,-6083.10848367,0.000136,2]
[353881918,1740109848324,-839.298,0.000136,2]
[353881920,1740109848333,-150.0,0.000136,2]
[353881922,1740109848343,-2597.65506463,0.000136,2]
[353881924,1740109848352,-2597.65506445,0.000136,2]
[353881926,1740109848363,-2597.65506445,0.000136,2]
[353881927,1740109848372,-2597.65506445,0.000136,2]
[353881929,1740109848383,-2597.65506445,0.000136,2]
[353881931,1740109848392,-2597.65506445,0.000136,2]
[353881933,1740109848402,-2597.65506445,0.000136,2]
[353881934,1740109848412,-2597.65506445,0.000136,2]
[353881936,1740109848423,-2597.65506445,0.000136,2]
[353881938,1740109848432,-2597.65506445,0.000136,2]
[353881940,1740109848442,-2597.65506445,0.000136,2]
[353881942,1740109848452,-2597.65506445,0.000136,2]
[353881944,1740109848461,-2597.65506445,0.000136,2]
[353881946,1740109848472,-2597.65506445,0.000136,2]
[353881947,1740109848482,-2597.65506445,0.000136,2]
[353881949,1740109848492,-2597.65506445,0.000136,2]
[353881951,1740109848502,-2597.65506445,0.000136,2]
[353881953,1740109848512,-2597.65506445,0.000136,2]
[353881955,1740109848521,-2597.65506445,0.000136,2]
[353881957,1740109848530,-2597.65506445,0.000136,2]
[353881958,1740109848540,-169.71765791,0.000136,2]
[353881960,1740109848550,-150.0,0.00013606,2]
[353881962,1740109848560,-150.0,0.00013606,2]
[353881964,1740109848569,-150.0,0.00013619,2]
[353881966,1740109848578,-150.0,0.00013619,2]
[353881967,1740109848588,-150.0,0.00013621,2]
[353881969,1740109848597,-150.0,0.00013626,2]
[353881971,1740109848607,-1000.0,0.00013627,2]
[353881973,1740109848616,-150.0,0.00013627,2]
[353881975,1740109848626,-150.0,0.00013634,2]
[353881976,1740109848635,-150.0,0.00013635,2]
[353881978,1740109848645,-150.0,0.00013635,2]
[353881980,1740109848654,-150.0,0.00013636,2]
[353881982,1740109848663,-150.0,0.00013636,2]
[353881984,1740109848672,-150.0,0.00013636,2]
[353881985,1740109848681,-312.10596833,0.00013637,2]
[353881987,1740109848691,-1000.0,0.00013638,2]
[353881989,1740109848700,-1013.87168152,0.00013642,2]
[353881991,1740109848711,-150.0,0.00013642,2]
[353881993,1740109848719,-150.0,0.00013642,2]
[353881995,1740109848729,-1000.0,0.00013643,2]
[353881996,1740109848739,-215.69,0.00013644,2]
[353881998,1740109848748,-439.29,0.00013644,2]
[353882000,1740109848757,-302.99,0.00013644,2]
[353882002,1740109848767,-152.79,0.00013644,2]
[353882004,1740109848776,-150.0,0.00013644,2]
[353882005,1740109848786,-439.29,0.00013644,2]
[353882007,1740109848796,-439.29,0.00013644,2]
[353882009,1740109848805,-150.0,0.00013644,2]
[353882011,1740109848814,-150.0,0.00013644,2]
[353882013,1740109848823,-245.05,0.00013644,2]
[353882015,1740109848833,-150.0,0.00013644,2]
[353882016,1740109848842,-1000.0,0.00013645,2]
[353882018,1740109848851,-150.0,0.00013646,2]
[353882020,1740109848861,-150.0,0.00013649,2]
[353882022,1740109848870,-150.0,0.00013651,2]
[353882024,1740109848879,-150.0,0.00013651,2]
[353882025,1740109848888,-1000.0,0.00013654,2]
[353882027,1740109848898,-150.0,0.00013657,2]
[353882029,1740109848908,-1000.0,0.00013657,2]
[353882031,1740109848927,-151.0,0.00013664,2]
[353882033,1740109848940,-153.587751,0.00013664,2]
[353882035,1740109848951,-153.587751,0.00013664,2]
[353882037,1740109848960,-151.0,0.00013664,2]
[353882039,1740109848970,-150.0,0.00013664,2]
[353882040,1740109848981,-5800.0,0.00013664,2]
[353882042,1740109848991,-150.0,0.00013667,2]
[353882044,1740109849000,-150.0,0.00013668,2]
[353882046,1740109849010,-268.54264027,0.00013671,2]
[353882048,1740109849022,-236.74313275,0.00013671,2]
[353882050,1740109849032,-207.91462979,0.00013671,2]
[353882051,1740109849044,-150.0,0.00013671,2]
[353882053,1740109849053,-5800.0,0.00013673,2]
[353882056,1740109849069,-395.44629301,0.00013673,2]
[353882058,1740109849084,-1000.0,0.00013676,2]
[353882060,1740109849093,-500.0,0.0001368,2]
[353882061,1740109849104,-739.54,0.0001368,2]
[353882063,1740109849114,-5800.0,0.00013681,2]
[353882064,1740109849124,-151.0,0.00013681,2]
[353882065,1740109849136,-151.0,0.00013681,2]
[353882066,1740109849146,-151.0,0.00013681,2]
[353882067,1740109849156,-150.0,0.00013681,2]
[353882068,1740109849166,-150.0,0.00013683,2]
[353882069,1740109849176,-7828.46783,0.00013689,2]
[353882070,1740109849186,-3398.2553107,0.00013689,2]
[353882071,1740109849195,-5800.0,0.0001369,2]
[353882072,1740109849204,-6977.4383531,0.0001369,2]
[353882073,1740109849214,-6126.4088762,0.0001369,2]
[353882074,1740109849224,-5275.3793993,0.0001369,2]
[353882075,1740109849234,-4424.3499224,0.0001369,2]
[353882076,1740109849245,-3028.8323914,0.0001369,2]
[353882078,1740109849255,-2659.4094721,0.0001369,2]
[353882080,1740109849264,-2289.9865528,0.0001369,2]
[353882081,1740109849274,-1920.5636335,0.0001369,2]
[353882083,1740109849283,-151.0,0.0001369,2]
[353882085,1740109849294,-220.961458,0.0001369,2]
[353882087,1740109849304,-151.0,0.0001369,2]
[353882089,1740109849313,-151.0,0.0001369,2]
[353882091,1740109849322,-151.0,0.0001369,2]
[353882093,1740109849332,-151.0,0.0001369,2]
[353882095,1740109849342,-151.0,0.0001369,2]
[353882097,1740109849351,-287.211643,0.0001369,2]
[353882099,1740109849361,-287.211643,0.0001369,2]
[353882102,1740109849371,-151.0,0.0001369,2]
[353882104,1740109849381,-151.0,0.0001369,2]
[353882106,1740109849391,-151.0,0.0001369,2]
[353882108,1740109849401,-225.565098,0.0001369,2]
[353882110,1740109849411,-225.565098,0.0001369,2]
[353882112,1740109849421,-151.0,0.0001369,2]
[353882114,1740109849430,-187.356848,0.0001369,2]
[353882116,1740109849441,-187.356848,0.0001369,2]
[353882118,1740109849450,-151.0,0.0001369,2]
[353882120,1740109849460,-150.0,0.00013693,2]
[353882122,1740109849471,-150.0,0.00013693,2]
[353882124,1740109849480,-1000.0,0.00013694,2]
[353882125,1740109849490,-150.0,0.00013696,2]
[353882128,1740109849500,-151.0,0.00013696,2]
[353882130,1740109849510,-151.0,0.00013696,2]
[353882132,1740109849520,-151.0,0.00013696,2]
[353882134,1740109849530,-151.909686,0.00013696,2]
[353882136,1740109849540,-1937258.91353654,0.00013696,3]
[353882199,1740109850145,-272.48463389,0.00011488,2]
[353882215,1740109850286,-837.51536611,0.00011488,2]
[353882217,1740109850296,-180.091,0.00011488,2]
[353882219,1740109850306,-13554.46877598,0.00013424,3]
[353882221,1740109850316,-66841.48602214,0.00013424,3]
[353882228,1740109850369,-19694.309596,0.00013424,3]
[353882230,1740109850381,-3668.93461459,0.00013424,3]
[353882575,1740110347866,311.8,8.767e-05,2]
[353882576,1740110354558,177.34,0.00013918,30]
[353882577,1740110599336,496.35,9.17e-05,2]
[353882578,1740110746999,1125.99066507,0.00020439,120]
[353882580,1740110850021,6042.0,9.506e-05,2]
[353882583,1740111035949,-395.3048,0.00010021,2]
[353882584,1740111035959,-150.0,0.00010021,2]
[353882585,1740111035968,-150.0,0.00010021,2]
[353882586,1740111035978,-505.06,0.00010021,2]
[353882587,1740111035987,-500.21,0.00010021,2]
[353882588,1740111035996,-499.92,0.00010021,2]
[353882589,1740111036005,-497.08,0.00010022,2]
[353882590,1740111036014,-494.87,0.00010022,2]
[353882591,1740111036023,-107.93542079,0.00010023,2]
[353882592,1740111036035,-399.47457921,0.00010023,2]
[353882593,1740111036044,-26.89186312,0.00010025,2]
[353882594,1740111036056,-463.60813688,0.00010025,2]
[353882595,1740111036065,-243.82449616,0.00010028,2]
[353882596,1740111036080,-256.76550384,0.00010028,2]
[353882597,1740111036090,-100.68548149,0.00010033,2]
[353882598,1740111036102,-392.92451851,0.00010033,2]
[353882599,1740111036111,-496.68,0.00010043,2]
[353882600,1740111036120,-506.1,0.0001006,2]
[353882601,1740111036129,-500.31,0.0001009,2]
[353882602,1740111036139,-196.54,0.00010344,2]
[353882603,1740111036149,-300.0,0.00010374,2]
[353882604,1740111036158,-23900.0,0.00010375,2]
[353882605,1740111036167,-150.23,0.00010521,2]
[353882606,1740111036176,-250.0,0.00010914,2]
[353882607,1740111036186,-150.0,0.00010959,2]
[353882608,1740111036197,-150.0,0.00011023,2]
[353882609,1740111036207,-200.0,0.00011057,2]
[353882610,1740111036217,-500.0,0.00011064,2]
[353882611,1740111036227,-500.0,0.00011064,2]
[353882612,1740111036238,-214.16,0.00011119,2]
[353882613,1740111036248,-1000.0,0.00011184,2]
[353882614,1740111036448,-420.0,0.00011407,2]
[353882615,1740111036458,-496.35,0.00011434,2]
[353882616,1740111036467,-150.22,0.00011564,2]
[353882617,1740111036476,-196.54,0.00011636,2]
[353882618,1740111036485,-193.339,0.0001182,2]
[353882619,1740111036495,-556.891,0.00011848,2]
[353882620,1740111036504,-784.0,0.00011848,2]
[353882621,1740111036513,-685.519,0.00011848,2]
[353882622,1740111036522,-500.0,0.000123,2]
[353882623,1740111036532,-500.0,0.000123,2]
[353882624,1740111036541,-500.0,0.000123,2]
[353882625,1740111036550,-500.0,0.000123,2]
[353882626,1740111036559,-500.0,0.000123,2]
[353882627,1740111036568,-500.0,0.000123,2]
[353882628,1740111036578,-500.0,0.000123,2]
[353882629,1740111036587,-500.0,0.000123,2]
[353882630,1740111036596,-500.0,0.000123,2]
[353882631,1740111036606,-500.0,0.000123,2]
[353882632,1740111036615,-500.0,0.000123,2]
[353882633,1740111036624,-500.0,0.000123,2]
[353882634,1740111036634,-500.0,0.000123,2]
[353882635,1740111036643,-500.0,0.000123,2]
[353882636,1740111036652,-500.0,0.000123,2]
[353882637,1740111036662,-500.0,0.000123,2]
[353882638,1740111036671,-500.0,0.000123,2]
[353882639,1740111036680,-500.0,0.000123,2]
[353882640,1740111036689,-500.0,0.000123,2]
[353882641,1740111036698,-500.0,0.000123,2]
[353882642,1740111036707,-500.0,0.000123,2]
[353882643,1740111036716,-500.0,0.000123,2]
[353882644,1740111036725,-500.0,0.000123,2]
[353882645,1740111036734,-500.0,0.000123,2]
[353882646,1740111036743,-500.0,0.000123,2]
[353882647,1740111036752,-500.0,0.000123,2]
[353882648,1740111036761,-500.0,0.000123,2]
[353882649,1740111036770,-500.0,0.000123,2]
[353882650,1740111036779,-500.0,0.000123,2]
[353882651,1740111036789,-500.0,0.000123,2]
[353882652,1740111036800,-500.0,0.000123,2]
[353882653,1740111036810,-500.0,0.000123,2]
[353882654,1740111036819,-500.0,0.000123,2]
[353882655,1740111036828,-500.0,0.000123,2]
[353882656,1740111036837,-500.0,0.000123,2]
[353882657,1740111036846,-500.0,0.000123,2]
[353882658,1740111036855,-500.0,0.000123,2]
[353882659,1740111036864,-500.0,0.000123,2]
[353882660,1740111036874,-500.0,0.000123,2]
[353882661,1740111036883,-500.0,0.000123,2]
[353882662,1740111036892,-500.0,0.000123,2]
[353882663,1740111036902,-500.0,0.000123,2]
[353882664,1740111036912,-500.0,0.000123,2]
[353882665,1740111036921,-500.0,0.000123,2]
[353882666,1740111036930,-500.0,0.000123,2]
[353882667,1740111036939,-500.0,0.000123,2]
[353882668,1740111036948,-500.0,0.000123,2]
[353882669,1740111036958,-500.0,0.000123,2]
[353882670,1740111036967,-500.0,0.000123,2]
[353882671,1740111036976,-500.0,0.000123,2]
[353882672,1740111036985,-500.0,0.000123,2]
[353882673,1740111036995,-500.0,0.000123,2]
[353882674,1740111037005,-500.0,0.000123,2]
[353882675,1740111037014,-500.0,0.000123,2]
[353882676,1740111037023,-500.0,0.000123,2]
[353882677,1740111037032,-500.0,0.000123,2]
[353882678,1740111037041,-500.0,0.000123,2]
[353882679,1740111037050,-500.0,0.000123,2]
[353882680,1740111037061,-500.0,0.000123,2]
[353882681,1740111037071,-500.0,0.000123,2]
[353882682,1740111037079,-500.0,0.000123,2]
[353882683,1740111037088,-500.0,0.000123,2]
[353882684,1740111037097,-500.0,0.000123,2]
[353882685,1740111037107,-500.0,0.000123,2]
[353882686,1740111037116,-500.0,0.000123,2]
[353882687,1740111037125,-500.0,0.000123,2]
[353882688,1740111037135,-500.0,0.000123,2]
[353882689,1740111037144,-500.0,0.000123,2]
[353882690,1740111037154,-500.0,0.000123,2]
[353882691,1740111037163,-500.0,0.000123,2]
[353882692,1740111037172,-500.0,0.000123,2]
[353882693,1740111037181,-500.0,0.000123,2]
[353882694,1740111037191,-500.0,0.000123,2]
[353882695,1740111037200,-500.0,0.000123,2]
[353882696,1740111037210,-500.0,0.000123,2]
[353882697,1740111037220,-500.0,0.000123,2]
[353882698,1740111037230,-500.0,0.000123,2]
[353882699,1740111037243,-500.0,0.000123,2]
[353882700,1740111037252,-500.0,0.000123,2]
[353882701,1740111037262,-500.0,0.000123,2]
[353882702,1740111037273,-500.0,0.000123,2]
[353882703,1740111037282,-500.0,0.000123,2]
[353882704,1740111037292,-500.0,0.000123,2]
[353882705,1740111037303,-501.0,0.00012356,2]
[353882706,1740111037314,-448.62,0.00012411,2]
[353882707,1740111037324,-776.16,0.00012411,2]
[353882708,1740111037333,-776.16,0.00012411,2]
[353882709,1740111037343,-220.0,0.00012426,2]
[353882710,1740111037352,-587.0,0.00012543,2]
[353882711,1740111037366,-1000.0,0.00012582,2]
[353882712,1740111037375,-779.74,0.00012741,2]
[353882713,1740111037384,-6624.495,0.00012783,2]
[353882714,1740111037395,-222.6247,0.00012783,2]
[353882715,1740111037405,-531.06851035,0.00012793,2]
[353882716,1740111037415,-3010.30726002,0.00012793,2]
[353882717,1740111037425,-146333.28118045,0.00012883,2]
[353882718,1740111037440,-117917.35747969,0.00012883,2]
[353882719,1740111037450,-500.0,0.00012893,2]
[353882720,1740111037459,-500.0,0.00012893,2]
[353882721,1740111037468,-500.0,0.00012893,2]
[353882722,1740111037477,-500.0,0.00012893,2]
[353882723,1740111037487,-500.0,0.00012893,2]
[353882724,1740111037496,-500.0,0.00012893,2]
[353882725,1740111037506,-500.0,0.00012893,2]
[353882726,1740111037519,-500.0,0.00012893,2]
[353882727,1740111037529,-500.0,0.00012893,2]
[353882728,1740111037539,-500.0,0.00012893,2]
[353882729,1740111037548,-500.0,0.00012893,2]
[353882730,1740111037557,-500.0,0.00012893,2]
[353882731,1740111037567,-500.0,0.00012893,2]
[353882732,1740111037576,-500.0,0.00012893,2]
[353882733,1740111037585,-500.0,0.00012893,2]
[353882734,1740111037595,-500.0,0.00012893,2]
[353882735,1740111037604,-500.0,0.00012893,2]
[353882736,1740111037613,-500.0,0.00012893,2]
[353882737,1740111037622,-500.0,0.00012893,2]
[353882738,1740111037631,-500.0,0.00012893,2]
[353882739,1740111037640,-500.0,0.00012893,2]
[353882740,1740111037650,-500.0,0.00012893,2]
[353882741,1740111037659,-500.0,0.00012893,2]
[353882742,1740111037668,-500.0,0.00012893,2]
[353882743,1740111037677,-500.0,0.00012893,2]
[353882744,1740111037687,-500.0,0.00012893,2]
[353882745,1740111037696,-500.0,0.00012893,2]
[353882746,1740111037705,-500.0,0.00012893,2]
[353882747,1740111037714,-500.0,0.00012893,2]
[353882748,1740111037723,-500.0,0.00012893,2]
[353882749,1740111037732,-500.0,0.00012893,2]
[353882750,1740111037742,-500.0,0.00012893,2]
[353882751,1740111037751,-500.0,0.00012893,2]
[353882752,1740111037761,-500.0,0.00012893,2]
[353882753,1740111037770,-500.0,0.00012893,2]
[353882754,1740111037779,-500.0,0.00012893,2]
[353882755,1740111037789,-500.0,0.00012893,2]
[353882756,1740111037799,-526.0,0.00012893,2]
[353882757,1740111037808,-500.0,0.00012893,2]
[353882758,1740111037817,-500.0,0.00012893,2]
[353882759,1740111037827,-500.0,0.00012893,2]
[353882760,1740111037836,-500.0,0.00012893,2]
[353882761,1740111037845,-500.0,0.00012893,2]
[353882762,1740111037854,-500.0,0.00012893,2]
[353882763,1740111037864,-500.0,0.00012893,2]
[353882764,1740111037873,-500.0,0.00012893,2]
[353882765,1740111037882,-500.0,0.00012893,2]
[353882766,1740111037892,-500.0,0.00012893,2]
[353882767,1740111037902,-500.0,0.00012893,2]
[353882768,1740111037911,-500.0,0.00012893,2]
[353882769,1740111037921,-500.0,0.00012893,2]
[353882770,1740111037930,-500.0,0.00012893,2]
[353882771,1740111037939,-500.0,0.00012893,2]
[353882772,1740111037949,-500.0,0.00012893,2]
[353882773,1740111037958,-500.0,0.00012893,2]
[353882774,1740111037968,-500.0,0.00012893,2]
[353882775,1740111037977,-500.0,0.00012893,2]
[353882776,1740111037987,-500.0,0.00012893,2]
[353882777,1740111037996,-500.0,0.00012893,2]
[353882778,1740111038005,-519.0,0.00012893,2]
[353882779,1740111038015,-500.0,0.00012893,2]
[353882780,1740111038024,-500.0,0.00012893,2]
[353882781,1740111038034,-500.0,0.00012893,2]
[353882782,1740111038043,-500.0,0.00012893,2]
[353882783,1740111038053,-500.0,0.00012893,2]
[353882784,1740111038062,-500.0,0.00012893,2]
[353882785,1740111038071,-500.0,0.00012893,2]
[353882786,1740111038081,-500.0,0.00012893,2]
[353882787,1740111038090,-500.0,0.00012893,2]
[353882788,1740111038099,-500.0,0.00012893,2]
[353882789,1740111038108,-500.0,0.00012893,2]
[353882790,1740111038117,-500.0,0.00012893,2]
[353882791,1740111038126,-500.0,0.00012893,2]
[353882792,1740111038136,-500.0,0.00012893,2]
[353882793,1740111038145,-500.0,0.00012893,2]
[353882794,1740111038154,-500.0,0.00012893,2]
[353882795,1740111038164,-500.0,0.00012893,2]
[353882796,1740111038173,-500.0,0.00012893,2]
[353882798,1740111038182,-500.0,0.00012893,2]
[353882801,1740111038191,-500.0,0.00012893,2]
[353882802,1740111038201,-513.0,0.00012893,2]
[353882803,1740111038210,-500.0,0.00012893,2]
[353882804,1740111038219,-500.0,0.00012893,2]
[353882805,1740111038229,-500.0,0.00012893,2]
[353882806,1740111038239,-500.0,0.00012893,2]
[353882807,1740111038247,-500.0,0.00012893,2]
[353882809,1740111038257,-500.0,0.00012893,2]
[353882811,1740111038266,-500.0,0.00012893,2]
[353882813,1740111038275,-500.0,0.00012893,2]
[353882815,1740111038285,-500.0,0.00012893,2]
[353882817,1740111038294,-500.0,0.00012893,2]
[353882819,1740111038303,-500.0,0.00012893,2]
[353882821,1740111038312,-500.0,0.00012893,2]
[353882822,1740111038322,-500.0,0.00012893,2]
[353882823,1740111038331,-500.0,0.00012893,2]
[353882824,1740111038340,-500.0,0.00012893,2]
[353882825,1740111038349,-500.0,0.00012893,2]
[353882826,1740111038362,-500.0,0.00012893,2]
[353882827,1740111038371,-500.0,0.00012893,2]
[353882828,1740111038381,-500.0,0.00012893,2]
[353882829,1740111038390,-500.0,0.00012893,2]
[353882830,1740111038399,-500.0,0.00012893,2]
[353882831,1740111038410,-500.0,0.00012893,2]
[353882832,1740111038419,-500.0,0.00012893,2]
[353882833,1740111038430,-500.0,0.00012893,2]
[353882834,1740111038443,-500.0,0.00012893,2]
[353882835,1740111038454,-500.0,0.00012893,2]
[353882836,1740111038463,-500.0,0.00012893,2]
[353882837,1740111038472,-500.0,0.00012893,2]
[353882838,1740111038481,-500.0,0.00012893,2]
[353882839,1740111038490,-500.0,0.00012893,2]
[353882840,1740111038499,-500.0,0.00012893,2]
[353882841,1740111038508,-500.0,0.00012893,2]
[353882842,1740111038517,-500.0,0.00012893,2]
[353882843,1740111038526,-205.05140187,0.000129,2]
[353882844,1740111038536,-196.54,0.00012929,2]
[353882845,1740111038546,-302.45771507,0.00013,3]
[353882846,1740111038555,-3010.30725997,0.00013005,2]
[353882847,1740111038564,-3010.30725997,0.00013217,2]
[353882848,1740111038574,-312.76576157,0.00013224,2]
[353882850,1740111038583,-455.3862,0.00013224,2]
[353882852,1740111038592,-250.42070933,0.00013241,2]
[353882854,1740111038601,-1819.97559471,0.00013324,2]
[353882856,1740111038610,-10273.9748,0.00013324,2]
[353882858,1740111038620,-5000.0,0.00013324,2]
[353882860,1740111038629,-42541.0219,0.00013324,2]
[353882862,1740111038638,-157.19574938,0.00013342,2]
[353882864,1740111038647,-776.16,0.0001337,2]
[353882866,1740111038656,-776.16,0.0001337,2]
[353882868,1740111038666,-1140.77,0.0001337,2]
[353882870,1740111038675,-1549.04,0.0001337,2]
[353882872,1740111038684,-196.42,0.000134,3]
[353882874,1740111038693,-620.8098108,0.00013422,2]
[353882875,1740111038702,-503.22924916,0.00013424,2]
[353882877,1740111038711,-506.16339097,0.00013424,2]
[353882879,1740111038720,-501.03650517,0.00013424,2]
[353882881,1740111038729,-514.31549752,0.00013424,2]
[353882883,1740111038739,-157.34464712,0.00013424,2]
[353882884,1740111038747,-204.00353185,0.00013424,2]
[353882885,1740111038757,-500.0,0.00013424,2]
[353882886,1740111038766,-505.56094177,0.00013424,2]
[353882887,1740111038774,-504.28952833,0.00013424,2]
[353882888,1740111038783,-501.82585981,0.00013424,2]
[353882889,1740111038792,-380.785607,0.00013424,2]
[353882890,1740111038801,-271.86391101,0.00013424,2]
[353882891,1740111038810,-373.80174085,0.00013424,2]
[353882892,1740111038819,-501.11519557,0.00013424,2]
[353882893,1740111038828,-238.31661165,0.00013424,2]
[353882894,1740111038837,-507.09013261,0.00013424,2]
[353882895,1740111038846,-500.0,0.00013424,2]
[353882896,1740111038854,-502.4586445,0.00013424,2]
[353882897,1740111038863,-287.371936,0.00013424,2]
[353882898,1740111038872,-500.54133122,0.00013424,2]
[353882899,1740111038881,-501.35915424,0.00013424,2]
[353882900,1740111038890,-501.21702944,0.00013424,2]
[353882901,1740111038900,-503.51994791,0.00013424,2]
[353882903,1740111038909,-500.0,0.00013424,2]
[353882904,1740111038918,-504.5507848,0.00013424,2]
[353882906,1740111038927,-494.33496114,0.00013424,2]
[353882908,1740111038937,-497.54616249,0.00013424,2]
[353882910,1740111038946,-516.88984108,0.00013424,2]
[353882913,1740111038955,-500.39254336,0.00013424,2]
[353882914,1740111038964,-500.0,0.00013424,2]
[353882916,1740111038973,-504.56691136,0.00013424,2]
[353882919,1740111038982,-503.72826393,0.00013424,2]
[353882921,1740111038992,-500.0,0.00013424,2]
[353882922,1740111039001,-503.93490634,0.00013424,2]
[353882925,1740111039010,-283.43799644,0.00013424,2]
[353882926,1740111039019,-586.51939099,0.00013424,2]
[353882929,1740111039031,-633.56739826,0.00013424,2]
[353882931,1740111039040,-503.87254968,0.00013424,2]
[353882933,1740111039049,-505.55255608,0.00013424,2]
[353882935,1740111039058,-501.56235317,0.00013424,2]
[353882937,1740111039067,-513.59458812,0.00013424,2]
[353882938,1740111039075,-504.25028505,0.00013424,2]
[353882939,1740111039084,-500.0,0.00013424,2]
[353882940,1740111039093,-502.64686986,0.00013424,2]
[353882941,1740111039103,-505.00335584,0.00013424,2]
[353882942,1740111039112,-520.72455303,0.00013424,2]
[353882943,1740111039121,-505.34701546,0.00013424,2]
[353882944,1740111039129,-507.07118018,0.00013424,2]
[353882945,1740111039139,-502.94698469,0.00013424,2]
[353882946,1740111039148,-502.38078929,0.00013424,2]
[353882947,1740111039157,-503.10154342,0.00013424,2]
[353882948,1740111039166,-604.28987652,0.00013424,2]
[353882949,1740111039175,-504.38484772,0.00013424,2]
[353882950,1740111039185,-505.46562689,0.00013424,2]
[353882951,1740111039194,-503.66623029,0.00013424,2]
[353882952,1740111039203,-504.16369316,0.00013424,2]
[353882954,1740111039212,-503.37056327,0.00013424,2]
[353882956,1740111039222,-513.50185,0.00013424,2]
[353882958,1740111039231,-507.45157749,0.00013424,2]
[353882960,1740111039240,-295.92,0.00013424,2]
[353882962,1740111039248,-500.0,0.00013424,2]
[353882964,1740111039257,-402.51140963,0.00013424,2]
[353882966,1740111039266,-504.67899032,0.00013424,2]
[353882968,1740111039275,-505.86075379,0.00013424,2]
[353882970,1740111039284,-509.23210153,0.00013424,2]
[353882972,1740111039293,-507.4989723,0.00013424,2]
[353882974,1740111039302,-509.77915898,0.00013424,2]
[353882976,1740111039311,-504.22189295,0.00013424,2]
[353882978,1740111039320,-500.0,0.00013424,2]
[353882980,1740111039328,-637.632108,0.00013424,2]
[353882982,1740111039337,-507.90636087,0.00013424,2]
[353882984,1740111039347,-500.0,0.00013424,2]
[353882986,1740111039358,-636.15880481,0.00013424,2]
[353882988,1740111039370,-509.93623264,0.00013424,2]
[353882990,1740111039379,-501.83756271,0.00013424,2]
[353882992,1740111039388,-508.59142118,0.00013424,2]
[353882994,1740111039397,-508.19169209,0.00013424,2]